Workbook

Sheet FINAL 221
A1: FINAL LIST OF JOB ROLES FOR PMKVY (2016-20)
A3: S.No | B3: SSC | C3: Job Role/QP Name | D3: QP Code | E3: NSQF Level | F3: Theory | G3: Practical | H3: Additional Duration: Entrepreneurship and Softskills | I3: Additional Duration: Digital Literacy - Not to be counted in total hours - trainee will undergo this on his/her own via online - available in English and Regional Languages at indiaskilsonline.com | J3: Training Duration (excluding Digital Literacy) | K3: Content Available | L3: Common Norms Category | M3: Classification - A: Regular Classroom & lab C: High Capex | N3: Training involving Hi capex | O3: Manufacturing / Service | P3: Technical / Non-Technical | Q3: Minimum no of hours of training per day at center | R3: Industry visit/OJT -Not applicable (NA)
A4: 1 | B4: Agriculture | C4: Animal Health Worker | D4: AGR/Q4804 | E4: 3 | F4: 120 | G4: 180 | H4: 40 | I4: 20 | J4: =SUM(F4:H4) -> 340 | K4: Yes | L4: I | M4: A | O4: Service | P4: Non-Technical | Q4: 4 | R4: 8
A5: 2 | B5: Agriculture | C5: Aquaculture worker | D5: AGR/Q4904 | E5: 3 | F5: 80 | G5: 120 | H5: 40 | I5: 20 | J5: =SUM(F5:H5) -> 240 | K5: Yes | L5: I | M5: A | O5: Service | P5: Non-Technical | Q5: 4 | R5: 8
A6: 3 | B6: Agriculture | C6: Green House Operator | D6: AGR/Q1003 | E6: 3 | F6: 90 | G6: 110 | H6: 40 | I6: 20 | J6: 240 | K6: Yes | L6: I | M6: C | N6: At site | O6: Manufacturing | P6: Technical | Q6: 4 | R6: 8
A7: 4 | B7: Agriculture | C7: Dairy Farmer/ Entrepreneur | D7: AGR/Q4101 | E7: 4 | F7: 80 | G7: 120 | H7: 40 | I7: 20 | J7: 240 | K7: Yes | L7: I | M7: A | O7: Service | P7: Non-Technical | Q7: 4 | R7: 8
A8: 5 | B8: Agriculture | C8: Tractor operator | D8: AGR/Q1101 | E8: 4 | F8: 88 | G8: 112 | H8: 40 | I8: 20 | J8: 240 | K8: Yes | L8: I | M8: A | O8: Manufacturing | P8: Technical | Q8: 4 | R8: 8
A9: 6 | B9: Agriculture | C9: Gardener | D9: AGR/Q0801 | E9: 4 | F9: 130 | G9: 170 | H9: 40 | I9: 20 | J9: 340 | K9: Yes | L9: II | M9: A | O9: Service | P9: Non-Technical | Q9: 4 | R9: 8
A10: 7 | B10: Agriculture | C10: Micro Irrigation Technician | D10: AGR/Q1002 | E10: 4 | F10: 80 | G10: 120 | H10: 40 | I10: 20 | J10: 240 | K10: Yes | L10: I | M10: A | O10: Manufacturing | P10: Technical | Q10: 4 | R10: 8
A11: 8 | B11: Agriculture | C11: Organic grower | D11: AGR/Q1201 | E11: 4 | F11: 80 | G11: 120 | H11: 40 | I11: 20 | J11: 240 | K11: Yes | L11: II | M11: A | O11: Service | P11: Non-Technical | Q11: 4 | R11: 8
A12: 9 | B12: Agriculture | C12: Quality Seed Grower | D12: AGR/Q7101 | E12: 4 | F12: 90 | G12: 110 | H12: 40 | I12: 20 | J12: 240 | K12: Yes | L12: II | M12: A | O12: Service | P12: Non-Technical | Q12: 4 | R12: 8
A13: 10 | B13: Agriculture | C13: Small poultry farmer | D13: AGR/Q4306 | E13: 4 | F13: 100 | G13: 140 | H13: 40 | I13: 20 | J13: 280 | K13: Yes | L13: II | M13: A | O13: Service | P13: Non-Technical | Q13: 4 | R13: 8
A14: 11 | B14: Apparel, Madeups & Home Furnishing | C14: In-line Checker | D14: AMH/Q0102 | E14: 3 | F14: 85 | G14: 185 | H14: 40 | I14: 20 | J14: 310 | K14: Yes | L14: I | M14: A | N14: NA | O14: Manufacturing | P14: Technical | Q14: 8 | R14: 4
A15: 12 | B15: Apparel, Madeups & Home Furnishing | C15: Packer | D15: AMH/Q1407 | E15: 3 | F15: 60 | G15: 120 | H15: 40 | I15: 20 | J15: 220 | K15: Yes | L15: I | M15: A | N15: NA | O15: Manufacturing | P15: Technical | Q15: 8 | R15: 4
A16: 13 | B16: Apparel, Madeups & Home Furnishing | C16: Sewing Machine Operator | D16: AMH/Q0301 | E16: 4 | F16: 80 | G16: 190 | H16: 40 | I16: 20 | J16: 310 | K16: Yes | L16: I | M16: A | N16: NA | O16: Manufacturing | P16: Technical | Q16: 8 | R16: 4
A17: 14 | B17: Apparel, Madeups & Home Furnishing | C17: Sewing Machine Operator - knits | D17: AMH/Q0305 | E17: 4 | F17: 90 | G17: 210 | H17: 40 | I17: 20 | J17: 340 | K17: Yes | L17: I | M17: A | N17: NA | O17: Manufacturing | P17: Technical | Q17: 8 | R17: 4
A18: 15 | B18: Apparel, Madeups & Home Furnishing | C18: Self Employed Tailor | D18: AMH/Q1947 | E18: 4 | F18: 80 | G18: 260 | H18: 40 | I18: 20 | J18: 380 | K18: Yes | L18: I | M18: A | N18: NA | O18: Manufacturing | P18: Technical | Q18: 8 | R18: 4
A19: 16 | B19: Apparel, Madeups & Home Furnishing | C19: Export Assistant | D19: AMH/Q1601 | E19: 4 | F19: 90 | G19: 180 | H19: 40 | I19: 20 | J19: 310 | K19: Yes | L19: I | M19: A | N19: NA | O19: Manufacturing | P19: Technical | Q19: 8 | R19: 4
A20: 17 | B20: Apparel, Madeups & Home Furnishing | C20: Hand Embroiderer | D20: AMH/Q1001 | E20: 4 | F20: 60 | G20: 140 | H20: 40 | I20: 20 | J20: 240 | K20: Yes | L20: I | M20: A | N20: NA | O20: Manufacturing | P20: Technical | Q20: 8 | R20: 4
A21: 18 | B21: Apparel, Madeups & Home Furnishing | C21: Pressman | D21: AMH/Q0401 | E21: 4 | F21: 85 | G21: 185 | H21: 40 | I21: 20 | J21: 310 | K21: Yes | L21: I | M21: A | N21: NA | O21: Manufacturing | P21: Technical | Q21: 8 | R21: 4
A22: 19 | B22: Apparel, Madeups & Home Furnishing | C22: Washing Machine Operator | D22: AMH/Q1810 | E22: 4 | F22: 90 | G22: 210 | H22: 40 | I22: 20 | J22: 340 | K22: Yes | L22: I | M22: A | N22: NA | O22: Manufacturing | P22: Technical | Q22: 8 | R22: 4
A23: 20 | B23: Automotive | C23: Machining and Quality Technician | D23: ASC/Q3509 | E23: 3 | F23: 175 | G23: 300 | H23: 40 | I23: 20 | J23: 515 | K23: Yes | L23: I | M23: C | N23: NA | O23: Manufacturing | P23: Technical | Q23: 8 | R23: 40
A24: 21 | B24: Automotive | C24: Welding and Quality Technician | D24: ASC/Q3109 | E24: 3 | F24: 175 | G24: 300 | H24: 40 | I24: 20 | J24: 515 | K24: Yes | L24: I | M24: C | N24: NA | O24: Manufacturing | P24: Technical | Q24: 8 | R24: 40
A25: 22 | B25: Automotive | C25: Dealership Telecaller Sales Executive | D25: ASC/Q1011 | E25: 4 | F25: 150 | G25: 350 | H25: 40 | I25: 20 | J25: 540 | K25: Yes | L25: II | M25: A | N25: NA | O25: Manufacturing | P25: Non-Technical | Q25: 8 | R25: 50
A26: 23 | B26: Automotive | C26: Dealership Sales and Value Aadded Services Executive | D26: ASC/Q1012 | E26: 4 | F26: 175 | G26: 300 | H26: 40 | I26: 20 | J26: 515 | K26: Yes | L26: II | M26: A | N26: NA | O26: Manufacturing | P26: Non-Technical | Q26: 8 | R26: 50
A27: 24 | B27: Automotive | C27: Showroom Hostess - Customer Relationship Executive | D27: ASC/Q1111 | E27: 4 | F27: 175 | G27: 275 | H27: 40 | I27: 20 | J27: 490 | K27: Yes | L27: II | M27: A | N27: NA | O27: Manufacturing | P27: Non-Technical | Q27: 8 | R27: 75
A28: 25 | B28: Automotive | C28: Automotive Service Technician (Two and Three Wheelers) | D28: ASC/Q1411 | E28: 4 | F28: 175 | G28: 275 | H28: 40 | I28: 20 | J28: 490 | K28: Yes | L28: I | M28: C | N28: NA | O28: Manufacturing | P28: Technical | Q28: 8 | R28: 50
A29: 26 | B29: Automotive | C29: Car Washer and Assistant Service Technician | D29: ASC/Q1417 | E29: 3 | F29: 175 | G29: 275 | H29: 40 | I29: 20 | J29: 490 | K29: Yes | L29: I | M29: C | N29: NA | O29: Manufacturing | P29: Technical | Q29: 8 | R29: 50
A30: 27 | B30: Automotive | C30: Chauffeur / Taxi Driver | D30: ASC/Q9714 | E30: 4 | F30: 160 | G30: 240 | H30: 40 | I30: 20 | J30: 440 | K30: Yes | L30: I | M30: C | N30: NA | O30: Manufacturing | P30: Technical | Q30: 8 | R30: 100
A31: 28 | B31: Automotive | C31: Auto / E Rickshaw Driver & Service Technician | D31: ACS/Q9719 | E31: 4 | F31: 200 | G31: 300 | H31: 40 | I31: 20 | J31: 540 | K31: Yes | L31: I | M31: C | N31: NA | O31: Manufacturing | P31: Technical | Q31: 8 | R31: 120
A32: 29 | B32: Automotvie | C32: Commercial Vehicle Driver Level 4 | D32: ASC/Q9703 | E32: 4 | F32: 160 | G32: 240 | H32: 40 | I32: 20 | J32: 400 | K32: Yes | L32: I | M32: C | N32: NA | O32: Manufacturing | P32: Technical | Q32: 8 | R32: 100
A33: 30 | B33: Beauty and Wellness | C33: Assistant Beauty Therapist | D33: BWS/Q0101 | E33: 3 | F33: 50 | G33: 200 | H33: 40 | I33: 20 | J33: 290 | K33: Yes | L33: II | M33: A | N33: NA | O33: Service | P33: Technical | Q33: 4 | R33: 24
A34: 31 | B34: Beauty and Wellness | C34: Assistant Hair Stylist | D34: BWS/Q0201 | E34: 3 | F34: 50 | G34: 250 | H34: 40 | I34: 20 | J34: 340 | K34: Yes | L34: II | M34: A | N34: NA | O34: Service | P34: Technical | Q34: 4 | R34: 32
A35: 32 | B35: Beauty and Wellness | C35: Assistant Nail Technician | D35: BWS/Q0401 | E35: 3 | F35: 30 | G35: 170 | H35: 40 | I35: 20 | J35: 240 | K35: Yes | L35: II | M35: A | N35: NA | O35: Manufacturing | P35: Non-Technical | Q35: 4 | R35: 32
A36: 33 | B36: Beauty and Wellness | C36: Assistant Spa Therapist | D36: BWS/Q1001 | E36: 3 | F36: 50 | G36: 250 | H36: 40 | I36: 20 | J36: 340 | K36: Yes | L36: II | M36: A | N36: NA | O36: Manufacturing | P36: Non-Technical | Q36: 4 | R36: 40
A37: 34 | B37: Beauty and Wellness | C37: Pedicurist & Manicurist | D37: BWS/Q0402 | E37: 3 | F37: 30 | G37: 220 | H37: 40 | I37: 20 | J37: 290 | K37: Yes | L37: II | M37: A | N37: NA | O37: Manufacturing | P37: Non-Technical | Q37: 4 | R37: 24
A38: 35 | B38: Beauty and Wellness | C38: Beauty Therapist | D38: BWS/Q0102 | E38: 4 | F38: 50 | G38: 300 | H38: 40 | I38: 20 | J38: 390 | K38: Yes | L38: II | M38: A | N38: NA | O38: Manufacturing | P38: Technical | Q38: 4 | R38: 40
A39: 36 | B39: Beauty and Wellness | C39: Hair Stylist | D39: BWS/Q0202 | E39: 4 | F39: 75 | G39: 275 | H39: 40 | I39: 20 | J39: 390 | K39: Yes | L39: II | M39: A | N39: NA | O39: Manufacturing | P39: Technical | Q39: 4 | R39: 48
A40: 37 | B40: BFSI | C40: Business Correspondence & Business Facilitator | D40: BSC/Q0301 | E40: 3 | F40: 30 | G40: 120 | H40: 40 | I40: 20 | J40: 190 | K40: Yes | L40: III | M40: A | N40: NA | O40: Service | P40: Non-Technical | Q40: 4 | R40: 8
A41: 38 | B41: BFSI | C41: Accounts Executive - Accounts Payable and Receivable | D41: BSC/Q0901 | E41: 4 | F41: 30 | G41: 120 | H41: 40 | I41: 20 | J41: 190 | K41: Yes | L41: III | M41: A | N41: NA | O41: Service | P41: Non-Technical | Q41: 4 | R41: 16
A42: 39 | B42: BFSI | C42: Mutual Fund Agent | D42: BSC/Q0601 | E42: 4 | F42: 40 | G42: 160 | H42: 40 | I42: 20 | J42: 240 | K42: Yes | L42: III | M42: A | N42: NA | O42: Service | P42: Non-Technical | Q42: 4 | R42: 8
A43: 40 | B43: BFSI | C43: Life Insurance Agent | D43: BSC/Q0101 | E43: 4 | F43: 50 | G43: 175 | H43: 40 | I43: 20 | J43: 265 | K43: Yes | L43: III | M43: A | N43: NA | O43: Service | P43: Non-Technical | Q43: 4 | R43: 8
A44: 41 | B44: BFSI | C44: Debt Recovery Agent | D44: BSC/Q0701 | E44: 4 | F44: 30 | G44: 130 | H44: 40 | I44: 20 | J44: 200 | K44: Yes | L44: III | M44: A | N44: NA | O44: Service | P44: Non-Technical | Q44: 4 | R44: 8
A45: 42 | B45: BFSI | C45: Equity Dealer | D45: BSC/Q0201 | E45: 4 | F45: 30 | G45: 130 | H45: 40 | I45: 20 | J45: 200 | K45: Yes | L45: III | M45: A | N45: NA | O45: Service | P45: Non-Technical | Q45: 4 | R45: 16
A46: 43 | B46: Capital Goods | C46: Manual Metal Arc Welding/ Shielded Metal Arc Welding Welder | D46: CSC/Q0204+D16 | E46: 3 | F46: 150 | G46: 350 | H46: 40 | I46: 20 | J46: 540 | K46: Yes | L46: I | M46: A | N46: NA | O46: Manufacturing | P46: Technical | Q46: 8 | R46: 16
A47: 44 | B47: Capital Goods | C47: Fitter – Electrical and Electronic Assembly | D47: CSC/Q0305 | E47: 3 | F47: 150 | G47: 350 | H47: 40 | I47: 20 | J47: 540 | K47: Yes | L47: I | M47: A | N47: NA | O47: Manufacturing | P47: Technical | Q47: 8 | R47: 16
A48: 45 | B48: Capital Goods | C48: Fitter Mechanical Assembly | D48: CSC/Q0304 | E48: 3 | F48: 150 | G48: 350 | H48: 40 | I48: 20 | J48: 540 | K48: Yes | L48: I | M48: A | N48: NA | O48: Manufacturing | P48: Technical | Q48: 8 | R48: 16
A49: 46 | B49: Capital Goods | C49: CNC Operator Turning | D49: CSC/Q0115 | E49: 3 | F49: 140 | G49: 260 | H49: 40 | I49: 20 | J49: 440 | K49: Yes | L49: I | M49: A | N49: NA | O49: Manufacturing | P49: Technical | Q49: 8 | R49: 16
A50: 47 | B50: Capital Goods | C50: Draughtsman – Mechanical | D50: CSC/Q0402 | E50: 4 | F50: 100 | G50: 300 | H50: 40 | I50: 20 | J50: =SUM(F50:H50) -> 440 | K50: Yes | L50: I | M50: A | N50: NA | O50: Manufacturing | P50: Technical | Q50: 8 | R50: 16
A51: 48 | B51: Capital Goods | C51: Fitter Fabrication | D51: CSC/Q0303 | E51: 3 | F51: 140 | G51: 360 | H51: 40 | I51: 20 | J51: 540 | K51: Yes | L51: I | M51: A | N51: NA | O51: Manufacturing | P51: Technical | Q51: 8 | R51: 16
A52: 49 | B52: Construction | C52: Assistant Electrician | D52: CON/Q0602 | E52: 3 | F52: 110 | G52: 290 | H52: 40 | I52: 20 | J52: =SUM(F52:H52) -> 440 | K52: Yes | L52: I | M52: A | N52: NA | O52: Manufacturing | P52: Technical | Q52: 8 | R52: 120
A53: 50 | B53: Construction | C53: Bar Bender and Steel Fixer | D53: CON/Q0203 | E53: 4 | F53: 80 | G53: 320 | H53: 40 | I53: 20 | J53: 440 | K53: Yes | L53: I | M53: A | N53: NA | O53: Manufacturing | P53: Technical | Q53: 8 | R53: 120
A54: 51 | B54: Construction | C54: Mason General | D54: CON/Q0103 | E54: 4 | F54: 80 | G54: 320 | H54: 40 | I54: 20 | J54: 440 | K54: Yes | L54: I | M54: A | N54: NA | O54: Manufacturing | P54: Technical | Q54: 8 | R54: 120
A55: 52 | B55: Construction | C55: Construction Painter & Decorator | D55: CON/Q0503 | E55: 3 | F55: 80 | G55: 320 | H55: 40 | I55: 20 | J55: 440 | K55: Yes | L55: I | M55: A | N55: NA | O55: Manufacturing | P55: Technical | Q55: 8 | R55: 120
A56: 53 | B56: Construction | C56: Mason Tiling | D56: CON/Q0104 | E56: 4 | F56: 90 | G56: 310 | H56: 40 | I56: 20 | J56: 440 | K56: Yes | L56: I | M56: A | N56: NA | O56: Manufacturing | P56: Technical | Q56: 8 | R56: 120
A57: 54 | B57: Construction | C57: Mason Concrete | D57: CON/Q0105 | E57: 3 | F57: 80 | G57: 320 | H57: 40 | I57: 20 | J57: 440 | K57: Yes | L57: I | M57: A | N57: NA | O57: Manufacturing | P57: Technical | Q57: 8 | R57: 120
A58: 55 | B58: Construction | C58: Shuttering Carpenter - System | D58: CON/Q0304 | E58: 4 | F58: 80 | G58: 320 | H58: 40 | I58: 20 | J58: 440 | K58: Yes | L58: I | M58: A | N58: NA | O58: Manufacturing | P58: Technical | Q58: 8 | R58: 120
A59: 56 | B59: Domestic Workers | C59: Child Caretaker | D59: DWC/Q0201 | E59: 3 | F59: 80 | G59: 120 | H59: 40 | I59: 20 | J59: 240 | K59: Yes | L59: II | M59: A | N59: NA | O59: Service | P59: Non-Technical | Q59: 4 | R59: 30
A60: 57 | B60: Domestic Workers | C60: Elderly Caretaker (Non-Clinical) | D60: DWC/Q0801 | E60: 3 | F60: 80 | G60: 120 | H60: 40 | I60: 20 | J60: 240 | K60: Yes | L60: II | M60: A | N60: NA | O60: Service | P60: Non-Technical | Q60: 4 | R60: 30
A61: 58 | B61: Domestic Workers | C61: General Housekeeper | D61: DWC/Q0102 | E61: 3 | F61: 80 | G61: 120 | H61: 40 | I61: 20 | J61: 240 | K61: Yes | L61: II | M61: A | N61: NA | O61: Service | P61: Non-Technical | Q61: 4 | R61: 30
A62: 59 | B62: Domestic Workers | C62: Housekeeper cum cook | D62: DWC/Q0101 | E62: 3 | F62: 100 | G62: 150 | H62: 40 | I62: 20 | J62: 290 | K62: Yes | L62: I | M62: A | N62: NA | O62: Service | P62: Technical | Q62: 4 | R62: 40
A63: 60 | B63: Earthmoving & Infrastructure Building | C63: Junior Batching Plant Operator | D63: IES/Q0117 | E63: 3 | F63: 40 | G63: 110 | H63: 40 | I63: 20 | J63: 190 | K63: Yes | L63: I | M63: C | N63: At site | O63: Manufacturing | P63: Technical | Q63: 8 | R63: 20
A64: 61 | B64: Earthmoving & Infrastructure Building | C64: Junior Transit Mixer Operator | D64: IES/Q0119 | E64: 3 | F64: 40 | G64: 110 | H64: 40 | I64: 20 | J64: 190 | K64: Yes | L64: I | M64: C | N64: At site | O64: Manufacturing | P64: Technical | Q64: 8 | R64: 20
A65: 62 | B65: Earthmoving & Infrastructure Building | C65: Junior Backhoe Operator | D65: IES/Q0102 | E65: 3 | F65: 40 | G65: 110 | H65: 40 | I65: 20 | J65: 190 | K65: Yes | L65: I | M65: C | N65: NA | O65: Manufacturing | P65: Technical | Q65: 8 | R65: 16
A66: 63 | B66: Earthmoving & Infrastructure Building | C66: Junior Excavator Operator | D66: IES/Q0104 | E66: 3 | F66: 60 | G66: 110 | H66: 40 | I66: 20 | J66: 210 | K66: Yes | L66: I | M66: C | N66: NA | O66: Manufacturing | P66: Technical | Q66: 8 | R66: 16
A67: 64 | B67: Earthmoving & Infrastructure Building | C67: Junior Operator Crane | D67: IES/Q0111 | E67: 3 | F67: 40 | G67: 110 | H67: 40 | I67: 20 | J67: 190 | K67: Yes | L67: I | M67: C | N67: NA | O67: Manufacturing | P67: Technical | Q67: 8 | R67: 16
A68: 65 | B68: Earthmoving & Infrastructure Building | C68: Junior Mechanic - Engine | D68: IES/Q1102 | E68: 3 | F68: 50 | G68: 110 | H68: 40 | I68: 20 | J68: 200 | K68: Yes | L68: I | M68: C | N68: NA | O68: Manufacturing | P68: Technical | Q68: 8 | R68: 16
A69: 66 | B69: Earthmoving & Infrastructure Building | C69: Junior Mechanic- Hydraulics | D69: IES/Q1104 | E69: 3 | F69: 50 | G69: 110 | H69: 40 | I69: 20 | J69: 200 | K69: Yes | L69: I | M69: C | N69: NA | O69: Manufacturing | P69: Technical | Q69: 8 | R69: 16
A70: 67 | B70: Earthmoving & Infrastructure Building | C70: Junior Mechanic – Elec/Electronics/ Instruments | D70: IES/Q1106 | E70: 3 | F70: 50 | G70: 110 | H70: 40 | I70: 20 | J70: 200 | K70: Yes | L70: I | M70: C | N70: NA | O70: Manufacturing | P70: Technical | Q70: 8 | R70: 16
A71: 68 | B71: Earthmoving & Infrastructure Building | C71: Backhoe Loader Operator | D71: IES/Q0101 | E71: 4 | F71: 60 | G71: 150 | H71: 40 | I71: 20 | J71: =SUM(F71:H71) -> 250 | K71: Yes | L71: I | M71: C | N71: NA | O71: Manufacturing | P71: Technical | Q71: 8 | R71: 16
A72: 69 | B72: Earthmoving & Infrastructure Building | C72: Excavator Operator | D72: IES/Q0103 | E72: 4 | F72: 60 | G72: 150 | H72: 40 | I72: 20 | J72: 250 | K72: Yes | L72: I | M72: C | N72: NA | O72: Manufacturing | P72: Technical | Q72: 8 | R72: 16
A73: 70 | B73: Electronics & Hardware | C73: DTH Set Top Box Installation & Service Technician | D73: ELE/Q8101 | E73: 4 | F73: 120 | G73: 180 | H73: 40 | I73: 20 | J73: 340 | K73: Yes | L73: I | M73: A | N73: NA | O73: Manufacturing | P73: Technical | Q73: 8 | R73: 24
A74: 71 | B74: Electronics & Hardware | C74: Field Technician – Computing and Peripherals | D74: ELE/Q4601 | E74: 4 | F74: 120 | G74: 180 | H74: 40 | I74: 20 | J74: 340 | K74: Yes | L74: I | M74: A | N74: NA | O74: Service | P74: Technical | Q74: 8 | R74: 40
A75: 72 | B75: Electronics & Hardware | C75: CCTV Installation Technician | D75: ELE/Q4605 | E75: 4 | F75: 180 | G75: 180 | H75: 40 | I75: 20 | J75: 400 | K75: Yes | L75: I | M75: A | N75: NA | O75: Manufacturing | P75: Technical | Q75: 8 | R75: 40
A76: 73 | B76: Electronics & Hardware | C76: Solar Panel Installation Technician | D76: ELE/Q5901 | E76: 4 | F76: 200 | G76: 200 | H76: 40 | I76: 20 | J76: 440 | K76: Yes | L76: I | M76: A | N76: NA | O76: Manufacturing | P76: Technical | Q76: 8 | R76: 80
A77: 74 | B77: Electronics & Hardware | C77: LED Light Repair Technician | D77: ELE/Q9302 | E77: 4 | F77: 180 | G77: 180 | H77: 40 | I77: 20 | J77: 400 | K77: Yes | L77: I | M77: A | N77: NA | O77: Service | P77: Technical | Q77: 8 | R77: 40
A78: 75 | B78: Electronics & Hardware | C78: Mobile Phone Hardware Repair Technician | D78: ELE/Q8104 | E78: 4 | F78: 180 | G78: 180 | H78: 40 | I78: 20 | J78: 400 | K78: Yes | L78: I | M78: A | N78: NA | O78: Service | P78: Technical | Q78: 8 | R78: 40
A79: 76 | B79: Electronics & Hardware | C79: Field Technician – Networking and Storage | D79: ELE/Q4606 | E79: 4 | F79: 180 | G79: 180 | H79: 40 | I79: 20 | J79: 400 | K79: Yes | L79: I | M79: A | N79: NA | O79: Service | P79: Technical | Q79: 8 | R79: 40
A80: 77 | B80: Electronics & Hardware | C80: Field Technician – Other Home Appliances | D80: ELE/Q3104 | E80: 4 | F80: 180 | G80: 180 | H80: 40 | I80: 20 | J80: 400 | K80: Yes | L80: I | M80: A | N80: NA | O80: Manufacturing | P80: Technical | Q80: 8 | R80: 80
A81: 78 | B81: Electronics & Hardware | C81: TV Repair Technician | D81: ELE/Q3101 | E81: 4 | F81: 180 | G81: 180 | H81: 40 | I81: 20 | J81: 400 | K81: Yes | L81: I | M81: A | N81: NA | O81: Service | P81: Technical | Q81: 8 | R81: 40
A82: 79 | B82: Food Processing | C82: Pickle Making Technician | D82: FIC/Q0102 | E82: 4 | F82: 90 | G82: 150 | H82: 40 | I82: 20 | J82: 280 | K82: Yes | L82: I | M82: A | N82: NA | O82: Manufacturing | P82: Technical | Q82: 4 | R82: 20
A83: 80 | B83: Food Processing | C83: Jam Jelly & Ketchup Processing Technician | D83: FIC/Q0103 | E83: 4 | F83: 90 | G83: 150 | H83: 40 | I83: 20 | J83: 280 | K83: Yes | L83: I | M83: A | N83: NA | O83: Manufacturing | P83: Technical | Q83: 4 | R83: 40
A84: 81 | B84: Food Processing | C84: Craft Baker | D84: FIC/Q5002 | E84: 4 | F84: 90 | G84: 150 | H84: 40 | I84: 20 | J84: 280 | K84: Yes | L84: I | M84: A | N84: NA | O84: Manufacturing | P84: Technical | Q84: 4 | R84: 50
A85: 82 | B85: Food Processing | C85: Baking Technician | D85: FIC/Q5005 | E85: 4 | F85: 90 | G85: 150 | H85: 40 | I85: 20 | J85: 280 | K85: Yes | L85: I | M85: A | N85: NA | O85: Manufacturing | P85: Technical | Q85: 4 | R85: 30
A86: 83 | B86: Food Processing | C86: Plant Biscuit Production Specialist | D86: FIC/Q5003 | E86: 4 | F86: 90 | G86: 150 | H86: 40 | I86: 20 | J86: 280 | K86: Yes | L86: I | M86: A | N86: NA | O86: Manufacturing | P86: Technical | Q86: 4 | R86: 30
A87: 84 | B87: Furniture & Fittings | C87: Carpenter - Wooden Furniture | D87: FFS/Q0102 | E87: 4 | F87: 136 | G87: 172 | H87: 40 | I87: 20 | J87: 348 | K87: Yes | L87: II | M87: A | N87: NA | O87: Manufacturing | P87: technical | Q87: 4 | R87: 40
A88: 85 | B88: Furniture & Fittings | C88: Fitter-Modular Furniture | D88: FFS/Q5702 | E88: 4 | F88: 120 | G88: 180 | H88: 40 | I88: 20 | J88: 340 | K88: Yes | L88: II | M88: A | N88: NA | O88: Manufacturing | P88: technical | Q88: 4 | R88: 40
A89: 86 | B89: Gems and Jewellery | C89: Jewellery Retail - Jewellery Retail Sales Associate | D89: G&J/Q6802 | E89: 4 | F89: 65 | G89: 85 | H89: 40 | I89: 20 | J89: 190 | K89: Yes | L89: II | M89: A | N89: NA | O89: Service | P89: Non-Technical | Q89: 4 | R89: 30
A90: 87 | B90: Gems and Jewellery | C90: Cast and diamonds-set jewellery - Hand Sketch Designer (Basic) | D90: G&J/Q2301 | E90: 3 | F90: 24 | G90: 126 | H90: 40 | I90: 20 | J90: 190 | K90: Yes | L90: I | M90: A | N90: NA | O90: Manufacturing | P90: Technical | Q90: 4 | R90: NA
A91: 88 | B91: Gems and Jewellery | C91: Cast and diamonds-set jewellery - CAD Operator | D91: G&J/Q2303 | E91: 4 | F91: 24 | G91: 216 | H91: 40 | I91: 20 | J91: 280 | K91: Yes | L91: I | M91: A | N91: NA | O91: Manufacturing | P91: Technical | Q91: 4 | R91: NA
A92: 89 | B92: Gems and Jewellery | C92: Diamond Processing - Assorter (Advanced) | D92: G&J/Q3603 | E92: 4 | F92: 24 | G92: 126 | H92: 40 | I92: 20 | J92: 190 | K92: Yes | L92: I | M92: A | N92: NA | O92: Manufacturing | P92: Technical | Q92: 4 | R92: NA
A93: 90 | B93: Gems and Jewellery | C93: Handmade Gold and Gems-set Jewellery - Goldsmith - Components | D93: G&J/Q0603 | E93: 3 | F93: 24 | G93: 126 | H93: 40 | I93: 20 | J93: 190 | K93: Yes | L93: I | M93: A | N93: NA | O93: Manufacturing | P93: Technical | Q93: 4 | R93: NA
A94: 91 | B94: Gems and Jewellery | C94: Handmade Gold and Gems-set Jewellery - Goldsmith - Frame | D94: G&J/Q0604 | E94: 4 | F94: 24 | G94: 126 | H94: 40 | I94: 20 | J94: 190 | K94: Yes | L94: I | M94: A | N94: NA | O94: Manufacturing | P94: Technical | Q94: 4 | R94: NA
A95: 92 | B95: Gems and Jewellery | C95: Handmade Gold and Gems-set Jewellery - Polisher and Cleaner | D95: G&J/Q0701 | E95: 3 | F95: 24 | G95: 126 | H95: 40 | I95: 20 | J95: 190 | K95: Yes | L95: I | M95: A | N95: NA | O95: Manufacturing | P95: Technical | Q95: 4 | R95: NA
A96: 93 | B96: Gems and Jewellery | C96: Cast & Diamonds Set Jewellery - Wax Setter | D96: G&J/Q1701 | E96: 3 | F96: 24 | G96: 126 | H96: 40 | I96: 20 | J96: 190 | K96: Yes | L96: I | M96: A | N96: NA | O96: Manufacturing | P96: Technical | Q96: 4 | R96: NA
A97: 94 | B97: Gems and Jewellery | C97: Diamond Processing - Assorter (Basic) | D97: G&J/Q3601 | E97: 3 | F97: 24 | G97: 126 | H97: 40 | I97: 20 | J97: 190 | K97: Yes | L97: I | M97: A | N97: NA | O97: Manufacturing | P97: Technical | Q97: 4 | R97: NA
A98: 95 | B98: Green Jobs | C98: Wastewater Treatment Plant Helper | D98: SGJ/Q6602 | E98: 3 | F98: 50 | G98: 110 | H98: 40 | I98: 20 | J98: 200 | K98: Yes | L98: III | M98: A & B | N98: NA | O98: Manufacturing | P98: Technical | Q98: 4 | R98: 110
A99: 96 | B99: Green Jobs | C99: Solar PV Installer (Suryamitra) | D99: SGJ/Q0101 | E99: 4 | F99: 115 | G99: 185 | H99: 40 | I99: 20 | J99: 340 | K99: Yes | L99: I | M99: A | N99: NA | O99: Manufacturing | P99: Technical | Q99: 8 | R99: 60
A100: 97 | B100: Green Jobs | C100: Solar PV Installer - Electrical | D100: SGJ/Q0102 | E100: 4 | F100: 65 | G100: 135 | H100: 40 | I100: 20 | J100: 240 | K100: Yes | L100: I | M100: A | N100: NA | O100: Manufacturing | P100: Technical | Q100: 8 | R100: 40
A101: 98 | B101: Green Jobs | C101: Solar PV Installer - Civil | D101: SGJ/Q0103 | E101: 4 | F101: 60 | G101: 120 | H101: 40 | I101: 20 | J101: 220 | K101: Yes | L101: I | M101: A | N101: NA | O101: Manufacturing | P101: Technical | Q101: 8 | R101: 30
A102: 99 | B102: Green Jobs | C102: Wastewater Treatment Plant Technician | D102: SGJ/Q6601 | E102: 4 | F102: 70 | G102: 130 | H102: 40 | I102: 20 | J102: 240 | K102: Yes | L102: III | M102: A & B | N102: NA | O102: Manufacturing | P102: Technical | Q102: 4 | R102: 130
A103: 100 | B103: Handicrafts | C103: Bamboo Mat Weaver | D103: HCS/Q8702 | E103: 3 | F103: 40 | G103: 110 | H103: 40 | I103: 20 | J103: 190 | K103: Yes | L103: II | M103: A | N103: NA | O103: Manufacturing | P103: Technical | Q103: 4 | R103: NA
A104: 101 | B104: Handicrafts | C104: Handloom Weaver (Carpets) | D104: HCS/Q5412 | E104: 3 | F104: 50 | G104: 100 | H104: 40 | I104: 20 | J104: 190 | K104: Yes | L104: II | M104: A | N104: NA | O104: Manufacturing | P104: Technical | Q104: 4 | R104: NA
A105: 102 | B105: Handicrafts | C105: Hand Rolled Agarbatti Maker | D105: HCS/Q7901 | E105: 3 | F105: 70 | G105: 180 | H105: 40 | I105: 20 | J105: 290 | K105: Yes | L105: II | M105: A | N105: NA | O105: Manufacturing | P105: Technical | Q105: 4 | R105: NA
A106: 103 | B106: Handicrafts | C106: Bamboo Basket Maker | D106: HCS/Q8704 | E106: 3 | F106: 70 | G106: 170 | H106: 40 | I106: 20 | J106: 280 | K106: Yes | L106: II | M106: A | N106: NA | O106: Manufacturing | P106: Technical | Q106: 4 | R106: NA
A107: 104 | B107: Handicrafts | C107: Agarbatti Packer | D107: HCS/Q8002 | E107: 3 | F107: 65 | G107: 155 | H107: 40 | I107: 20 | J107: 260 | K107: Yes | L107: II | M107: A | N107: NA | O107: Manufacturing | P107: Technical | Q107: 4 | R107: NA
A108: 105 | B108: Handicrafts | C108: Bamboo Utility Handicraft Assembler | D108: HCS/Q8705 | E108: 3 | F108: 70 | G108: 160 | H108: 40 | I108: 20 | J108: 270 | K108: Yes | L108: II | M108: A | N108: NA | O108: Manufacturing | P108: Technical | Q108: 4 | R108: NA
A109: 106 | B109: Handicrafts | C109: Stamping operator | D109: HCS/Q2802 | E109: 4 | F109: 64 | G109: 136 | H109: 40 | I109: 20 | J109: 240 | K109: Yes | L109: II | M109: A | N109: NA | O109: Manufacturing | P109: Technical | Q109: 4 | R109: NA
A110: 107 | B110: Handicrafts | C110: Engraving artisan | D110: HCS/Q2902 | E110: 4 | F110: 85 | G110: 195 | H110: 40 | I110: 20 | J110: 320 | K110: Yes | L110: II | M110: A | N110: NA | O110: Manufacturing | P110: Technical | Q110: 4 | R110: NA
A111: 108 | B111: Healthcare | C111: Front Line Health Worker | D111: HSS/Q8601 | E111: 3 | F111: 110 | G111: 315 | H111: 40 | I111: 20 | J111: 465 | K111: Yes | L111: II | M111: A | N111: NA | O111: Service | P111: Technical | Q111: 4 | R111: 200
A112: 109 | B112: Healthcare | C112: Vision Technician | D112: HSS/Q3001 | E112: 3 | F112: 110 | G112: 315 | H112: 40 | I112: 20 | J112: 465 | K112: Yes | L112: I | M112: C | N112: NA | O112: Service | P112: Technical | Q112: 4 | R112: 200
A113: 110 | B113: Healthcare | C113: Pharmacy Assistant | D113: HSS/Q5401 | E113: 4 | F113: 110 | G113: 315 | H113: 40 | I113: 20 | J113: 465 | K113: Yes | L113: II | M113: A | N113: NA | O113: Service | P113: Technical | Q113: 4 | R113: 225
A114: 111 | B114: Healthcare | C114: Emergency Medical Technician-Basic | D114: HSS/Q2301 | E114: 4 | F114: 100 | G114: 260 | H114: 40 | I114: 20 | J114: 400 | K114: Yes | L114: I | M114: C | N114: NA | O114: Service | P114: Technical | Q114: 4 | R114: 120
A115: 112 | B115: Healthcare | C115: Diabetes Educator | D115: HSS/Q8701 | E115: 4 | F115: 135 | G115: 225 | H115: 40 | I115: 20 | J115: 400 | K115: Yes | L115: II | M115: A | N115: NA | O115: Service | P115: Technical | Q115: 4 | R115: 120
A116: 113 | B116: Healthcare | C116: Diet Assistant | D116: HSS/Q5201 | E116: 4 | F116: 158 | G116: 322 | H116: 40 | I116: 20 | J116: 520 | K116: Yes | L116: II | M116: A | N116: NA | O116: Service | P116: Technical | Q116: 4 | R116: 180
A117: 114 | B117: Healthcare | C117: General Duty Assistant | D117: HSS/Q5101 | E117: 4 | F117: 100 | G117: 320 | H117: 40 | I117: 20 | J117: 460 | K117: Yes | L117: II | M117: A | N117: NA | O117: Service | P117: Technical | Q117: 4 | R117: 180
A118: 115 | B118: Healthcare | C118: Home Health Aide | D118: HSS/Q5102 | E118: 4 | F118: 120 | G118: 240 | H118: 40 | I118: 20 | J118: 400 | K118: Yes | L118: II | M118: A | N118: NA | O118: Service | P118: Technical | Q118: 4 | R118: 120
A119: 116 | B119: Iron and Steel | C119: Fitter: Electrical Assembly | D119: ISC/Q1001 | E119: 3 | F119: 75 | G119: 235 | H119: 40 | I119: 20 | J119: 350 | K119: Yes | L119: I | M119: A | N119: NA | O119: Manufacturing | P119: Technical | Q119: 4 | R119: 16
A120: 117 | B120: Iron and Steel | C120: Fitter: Instrumentation | D120: ISC/Q1102 | E120: 3 | F120: 70 | G120: 230 | H120: 40 | I120: 20 | J120: 340 | K120: Yes | L120: I | M120: A | N120: NA | O120: Manufacturing | P120: Technical | Q120: 4 | R120: 16
A121: 118 | B121: Iron and Steel | C121: Rigger - Rigging of Heavy Material | D121: ISC/Q0908 | E121: 3 | F121: 70 | G121: 180 | H121: 40 | I121: 20 | J121: 290 | K121: Yes | L121: I | M121: A | N121: NA | O121: Manufacturing | P121: Technical | Q121: 4 | R121: 16
A122: 119 | B122: Iron and Steel | C122: Iron & Steel – Machinist | D122: ISC/Q0909 | E122: 3 | F122: 120 | G122: 270 | H122: 40 | I122: 20 | J122: 430 | K122: Yes | L122: I | M122: A | N122: NA | O122: Manufacturing | P122: Technical | Q122: 4 | R122: 16
A123: 120 | B123: Iron and Steel | C123: Bearing Maintenance | D123: ISC/Q0906 | E123: 3 | F123: 80 | G123: 220 | H123: 40 | I123: 20 | J123: 340 | K123: Yes | L123: I | M123: A | N123: NA | O123: Manufacturing | P123: Technical | Q123: 4 | R123: 16
A124: 121 | B124: Iron and Steel | C124: Fitter: Electronic Assembly | D124: ISC/Q1101 | E124: 3 | F124: 80 | G124: 220 | H124: 40 | I124: 20 | J124: 340 | K124: Yes | L124: I | M124: A | N124: NA | O124: Manufacturing | P124: Technical | Q124: 4 | R124: 16
A125: 122 | B125: Iron and Steel | C125: Fitter: Leveling alignment balancing | D125: ISC/Q0905 | E125: 3 | F125: 100 | G125: 230 | H125: 40 | I125: 20 | J125: 370 | K125: Yes | L125: I | M125: A | N125: NA | O125: Manufacturing | P125: Technical | Q125: 4 | R125: 16
A126: 123 | B126: Iron and Steel | C126: Plasma Cutter | D126: ISC/Q0910 | E126: 4 | F126: 68 | G126: 212 | H126: 40 | I126: 20 | J126: 320 | K126: Yes | L126: I | M126: A | N126: NA | O126: Manufacturing | P126: Technical | Q126: 4 | R126: 16
A127: 124 | B127: Iron and Steel | C127: Gas Tungsten Arc Welding | D127: ISC/Q0911 | E127: 4 | F127: 80 | G127: 300 | H127: 40 | I127: 20 | J127: 420 | K127: Yes | L127: I | M127: C | N127: NA | O127: Manufacturing | P127: Technical | Q127: 4 | R127: 24
A128: 125 | B128: IT/ITes | C128: CRM Domestic Non-Voice | D128: SSC/Q2211 | E128: 4 | F128: 100 | G128: 300 | H128: 40 | I128: 20 | J128: 440 | K128: Yes | L128: II | M128: A | N128: NA | O128: Manufacturing | P128: Technical | Q128: 8 | R128: 50
A129: 126 | B129: IT/ITes | C129: CRM Domestic Voice | D129: SSC/Q2210 | E129: 4 | F129: 100 | G129: 300 | H129: 40 | I129: 20 | J129: 440 | K129: Yes | L129: II | M129: A | N129: NA | O129: Manufacturing | P129: Technical | Q129: 8 | R129: 50
A130: 127 | B130: IT/ITes | C130: Domestic Biometric Data Operator | D130: SSC/Q2213 | E130: 4 | F130: 100 | G130: 300 | H130: 40 | I130: 20 | J130: 440 | K130: Yes | L130: II | M130: A | N130: NA | O130: Manufacturing | P130: Technical | Q130: 8 | R130: 50
A131: 128 | B131: IT/ITes | C131: Domestic Data entry Operator | D131: SSC/Q2212 | E131: 4 | F131: 100 | G131: 300 | H131: 40 | I131: 20 | J131: 440 | K131: Yes | L131: II | M131: A | N131: NA | O131: Service | P131: Technical | Q131: 8 | R131: 50
A132: 129 | B132: IT/ITes | C132: Domestic IT Helpdesk Attendant | D132: SSC/Q0110 | E132: 4 | F132: 100 | G132: 300 | H132: 40 | I132: 20 | J132: =SUM(F132:H132) -> 440 | K132: Yes | L132: II | M132: A | N132: NA | O132: Service | P132: Technical | Q132: 8 | R132: 50
A133: 130 | B133: IT/ITes | C133: Junior Software Developer | D133: SSC/Q0508 | E133: 4 | F133: 100 | G133: 300 | H133: 40 | I133: 20 | J133: =SUM(G132:G132) -> 300 | K133: Yes | L133: II | M133: A | N133: NA | O133: Manufacturing | P133: Technical | Q133: 8 | R133: 50
A134: 131 | B134: Leather | C134: Stitching Operator (Footwear) | D134: LSS/Q2501 | E134: 4 | F134: 50 | G134: 450 | H134: 40 | I134: 20 | J134: 540 | K134: Yes | L134: I | M134: A | N134: NA | O134: Manufacturing | P134: Technical | Q134: 4 | R134: 40
A135: 132 | B135: Leather | C135: Stitcher (Goods & Garments) | D135: LSS/Q5501 | E135: 4 | F135: 30 | G135: 170 | H135: 40 | I135: 20 | J135: =SUM(F135:H135) -> 240 | K135: Yes | L135: I | M135: A | N135: NA | O135: Manufacturing | P135: Technical | Q135: 4 | R135: 40
A136: 133 | B136: Leather | C136: Cutter-Goods & Garments | D136: LSS/Q5301 | E136: 4 | F136: 30 | G136: 170 | H136: 40 | I136: 20 | J136: 240 | K136: Yes | L136: I | M136: A | N136: NA | O136: Manufacturing | P136: Technical | Q136: 4 | R136: 40
A137: 134 | B137: Leather | C137: Cutter- Footwear | D137: LSS/Q2301 | E137: 4 | F137: 40 | G137: 460 | H137: 40 | I137: 20 | J137: 540 | K137: Yes | L137: I | M137: C | N137: NA | O137: Manufacturing | P137: Technical | Q137: 4 | R137: 40
A138: 135 | B138: Leather | C138: Shaving Operator | D138: LSS/Q0501 | E138: 4 | F138: 33 | G138: 167 | H138: 40 | I138: 20 | J138: 240 | K138: Yes | L138: I | M138: C | N138: NA | O138: Manufacturing | P138: Technical | Q138: 4 | R138: 167
A139: 136 | B139: Leather | C139: Skiving Operator (Machine) | D139: LSS/Q2401 | E139: 4 | F139: 39 | G139: 461 | H139: 40 | I139: 20 | J139: 540 | K139: Yes | L139: I | M139: C | N139: NA | O139: Manufacturing | P139: Technical | Q139: 4 | R139: 40
A140: 137 | B140: Life Sciences | C140: Store Assistant- Life Sciences | D140: LFS/Q0604 | E140: 3 | F140: 130 | G140: 150 | H140: 40 | I140: 20 | J140: 320 | K140: Yes | L140: I | M140: A | N140: NA | O140: Manufacturing | P140: Non-Technical | Q140: 8 | R140: 72
A141: 138 | B141: Life Sciences | C141: Fitter Mechanical- Life Sciences | D141: LFS/Q0213 | E141: 3 | F141: 120 | G141: 140 | H141: 40 | I141: 20 | J141: 300 | K141: Yes | L141: I | M141: C | N141: At site | O141: Manufacturing | P141: Technical | Q141: 8 | R141: 100
A142: 139 | B142: Life Sciences | C142: Lab Technician/ Assistant - Life Sciences | D142: LFS/Q0509 | E142: 3 | F142: 100 | G142: 130 | H142: 40 | I142: 20 | J142: 270 | K142: Yes | L142: I | M142: A | N142: NA | O142: Manufacturing | P142: Technical | Q142: 8 | R142: 56
A143: 140 | B143: Life Sciences | C143: Medical Sales Representative | D143: LFS/Q0401 | E143: 4 | F143: 160 | G143: 320 | H143: 40 | I143: 20 | J143: 520 | K143: Yes | L143: II | M143: A | N143: NA | O143: Service | P143: Technical | Q143: 8 | R143: 80
A144: 141 | B144: Life Sciences | C144: Production/Machine Operator- Life Sciences | D144: LFS/Q0207 | E144: 4 | F144: 155 | G144: 221 | H144: 40 | I144: 20 | J144: 416 | K144: Yes | L144: I | M144: C | N144: At site | O144: Manufacturing | P144: Technical | Q144: 8 | R144: 120
A145: 142 | B145: Logistics | C145: Warehouse Picker | D145: LSC/Q2102 | E145: 3 | F145: 80 | G145: 190 | H145: 40 | I145: 20 | J145: 310 | K145: Yes | L145: II | M145: A | N145: NA | O145: Service | P145: Non-Technical | Q145: 4 | R145: 30
A146: 143 | B146: Logistics | C146: Warehouse Packer | D146: LSC/Q2303 | E146: 3 | F146: 80 | G146: 190 | H146: 40 | I146: 20 | J146: 310 | K146: Yes | L146: I | M146: A | N146: NA | O146: Service | P146: Technical | Q146: 4 | R146: 30
A147: 144 | B147: Logistics | C147: Consignment Booking Assistant | D147: LSC/Q1120 | E147: 3 | F147: 80 | G147: 190 | H147: 40 | I147: 20 | J147: 310 | K147: Yes | L147: I | M147: A | N147: NA | O147: Service | P147: Technical | Q147: 4 | R147: 30
A148: 145 | B148: Logistics | C148: Consignment Tracking Executive | D148: LSC/Q1121 | E148: 3 | F148: 80 | G148: 190 | H148: 40 | I148: 20 | J148: 310 | K148: Yes | L148: I | M148: A | N148: NA | O148: Service | P148: Technical | Q148: 4 | R148: 30
A149: 146 | B149: Logistics | C149: Courier Delivery Executive | D149: LSC/Q3023 | E149: 3 | F149: 80 | G149: 190 | H149: 40 | I149: 20 | J149: 310 | K149: Yes | L149: I | M149: A | N149: NA | O149: Service | P149: Technical | Q149: 4 | R149: 30
A150: 147 | B150: Logistics | C150: Documentation Assistant | D150: LSC/Q1122 | E150: 4 | F150: 80 | G150: 190 | H150: 40 | I150: 20 | J150: 310 | K150: Yes | L150: I | M150: A | N150: NA | O150: Service | P150: Technical | Q150: 4 | R150: 30
A151: 148 | B151: Logistics | C151: Inventory Clerk | D151: LSC/Q2108 | E151: 3 | F151: 75 | G151: 175 | H151: 40 | I151: 20 | J151: =SUM(F151:H151) -> 290 | K151: Yes | L151: I | M151: A | N151: NA | O151: Service | P151: Technical | Q151: 4 | R151: 30
A152: 149 | B152: Logistics | C152: Forklift Operator | D152: ASC/Q9707 | E152: 4 | F152: 90 | G152: 210 | H152: 40 | I152: 20 | J152: 340 | K152: Yes | L152: I | M152: C | N152: NA | O152: Service | P152: Technical | Q152: 4 | R152: 30
A153: 150 | B153: Media & Entertainment | C153: Makeup Artist | D153: MES/Q1801 | E153: 4 | F153: 120 | G153: 120 | H153: 40 | I153: 20 | J153: 280 | K153: Yes | L153: II | M153: A | N153: NA | O153: Service | P153: Non-Technical | Q153: 4 | R153: 20
A154: 151 | B154: Media & Entertainment | C154: Hairdresser | D154: MES/Q1802 | E154: 4 | F154: 120 | G154: 120 | H154: 40 | I154: 20 | J154: 280 | K154: Yes | L154: II | M154: A | N154: NA | O154: Service | P154: Non-Technical | Q154: 4 | R154: 20
A155: 152 | B155: Media & Entertainment | C155: Modeller | D155: MES/Q0401 | E155: 3 | F155: 120 | G155: 120 | H155: 40 | I155: 20 | J155: 280 | K155: Yes | L155: II | M155: A | N155: NA | O155: Service | P155: Technical | Q155: 4 | R155: 40
A156: 153 | B156: Media & Entertainment | C156: Animator | D156: MES/Q0701 | E156: 4 | F156: 120 | G156: 120 | H156: 40 | I156: 20 | J156: 280 | K156: Yes | L156: I | M156: A | N156: NA | O156: Service | P156: Technical | Q156: 4 | R156: 40
A157: 154 | B157: Media & Entertainment | C157: Character Designer | D157: MES/Q0502 | E157: 4 | F157: 120 | G157: 120 | H157: 40 | I157: 20 | J157: 280 | K157: Yes | L157: II | M157: A | N157: NA | O157: Service | P157: Non-Technical | Q157: 4 | R157: 40
A158: 155 | B158: Media & Entertainment | C158: Editor | D158: MES/Q1401 | E158: 4 | F158: 120 | G158: 120 | H158: 40 | I158: 20 | J158: 280 | K158: Yes | L158: II | M158: A | N158: NA | O158: Service | P158: Technical | Q158: 4 | R158: 40
A159: 156 | B159: Media & Entertainment | C159: Rotoartist | D159: MES/Q3504 | E159: 4 | F159: 120 | G159: 120 | H159: 40 | I159: 20 | J159: 280 | K159: Yes | L159: II | M159: A | N159: NA | O159: Service | P159: Technical | Q159: 4 | R159: 40
A160: 157 | B160: Media & Entertainment | C160: Sound Editor | D160: MES/Q3404 | E160: 4 | F160: 120 | G160: 120 | H160: 40 | I160: 20 | J160: 280 | K160: Yes | L160: II | M160: A | N160: NA | O160: Service | P160: Technical | Q160: 4 | R160: 40
A161: 158 | B161: Mining | C161: Mining - Mechanic / Fitter | D161: MIN/Q0304 | E161: 3 | F161: 60 | G161: 150 | H161: 40 | I161: 20 | J161: 250 | K161: Yes | L161: I | M161: A | N161: NA | O161: Manufacturing | P161: Technical | Q161: 4 | R161: 8
A162: 159 | B162: Mining | C162: Mining - Wire saw Operator | D162: MIN/Q0203 | E162: 4 | F162: 60 | G162: 150 | H162: 40 | I162: 20 | J162: 250 | K162: Yes | L162: I | M162: A | N162: NA | O162: Manufacturing | P162: Technical | Q162: 4 | R162: 8
A163: 160 | B163: Mining | C163: Mining - Loader Operator | D163: MIN/Q0208 | E163: 4 | F163: 40 | G163: 170 | H163: 40 | I163: 20 | J163: 250 | K163: Yes | L163: I | M163: C | N163: NA | O163: Manufacturing | P163: Technical | Q163: 4 | R163: 8
A164: 161 | B164: Mining | C164: Mining - Bulldozer Operator | D164: MIN/Q0205 | E164: 4 | F164: 70 | G164: 170 | H164: 40 | I164: 20 | J164: 280 | K164: Yes | L164: I | M164: C | N164: NA | O164: Manufacturing | P164: Technical | Q164: 4 | R164: 8
A165: 162 | B165: Mining | C165: Mining - HEMM Mechanic | D165: MIN/Q0433 | E165: 4 | F165: 60 | G165: 150 | H165: 40 | I165: 20 | J165: 250 | K165: Yes | L165: I | M165: C | N165: NA | O165: Manufacturing | P165: Technical | Q165: 4 | R165: 8
A166: 163 | B166: Mining | C166: Mine Electrician | D166: MIN/Q0416 | E166: 4 | F166: 60 | G166: 200 | H166: 40 | I166: 20 | J166: 300 | K166: Yes | L166: I | M166: A | N166: NA | O166: Manufacturing | P166: Technical | Q166: 8 | R166: 8
A167: 164 | B167: Mining | C167: Mine Welder | D167: MIN/Q0423 | E167: 4 | F167: 100 | G167: 250 | H167: 40 | I167: 20 | J167: 390 | K167: Yes | L167: I | M167: A | N167: NA | O167: Manufacturing | P167: Technical | Q167: 8 | R167: 8
A168: 165 | B168: Mining | C168: Mining - Safety Operator | D168: MIN/Q0437 | E168: 4 | F168: 60 | G168: 150 | H168: 40 | I168: 20 | J168: 250 | K168: Yes | L168: I | M168: A | N168: NA | O168: Manufacturing | P168: Technical | Q168: 8 | R168: 8
A169: 166 | B169: Mining | C169: Mining Shot Firer/Blaster | D169: MIN/Q0428 | E169: 4 | F169: 60 | G169: 150 | H169: 40 | I169: 20 | J169: 250 | K169: Yes | L169: I | M169: C | N169: NA | O169: Manufacturing | P169: Technical | Q169: 4 | R169: 8
A170: 167 | B170: Paints & Coatings | C170: Powder Coater | D170: PCS/Q5102 | E170: 4 | F170: 96 | G170: 144 | H170: 40 | I170: 20 | J170: 280 | K170: Yes | L170: II | M170: A | N170: NA | O170: Manufacturing | P170: Technical | Q170: 4 | R170: 4
A171: 168 | B171: People with Disability | C171: Housekeeping Attendant (Manual Cleaning) | D171: PWT/Q0203 | E171: 3 | F171: 75 | G171: 175 | H171: 40 | I171: 20 | J171: =SUM(F171:H171) -> 290 | K171: Yes | L171: II | M171: A | N171: NA | O171: Service | P171: Non-Technical | Q171: 8 | R171: 200
A172: 169 | B172: People with Disability | C172: Retail Sales Associate | D172: PWR/Q0104 | E172: 4 | F172: 140 | G172: 140 | H172: 40 | I172: 20 | J172: =SUM(F172:H172) -> 320 | K172: Yes | L172: II | M172: A | N172: NA | O172: Service | P172: Non-Technical | Q172: 8 | R172: 140
A173: 170 | B173: People with Disability | C173: Food & Beverage Service-Steward | D173: PWT/Q0301 | E173: 4 | F173: 90 | G173: 210 | H173: 40 | I173: 20 | J173: =SUM(F173:H173) -> 340 | K173: Yes | L173: II | M173: C | N173: NA | O173: Service | P173: Non-Technical | Q173: 8 | R173: 200
A174: 171 | B174: Plumbing | C174: Plumber General | D174: PSC/Q0104 | E174: 3 | F174: 120 | G174: 200 | H174: 40 | I174: 20 | J174: =SUM(F174:H174) -> 360 | K174: Yes | L174: I | M174: A | N174: NA | O174: Manufacturing | P174: Technical | Q174: 8 | R174: 80
A175: 172 | B175: Plumbing | C175: Plumbing Products Sales Officer | D175: PSC/Q0302 | E175: 3 | F175: 120 | G175: 200 | H175: 40 | I175: 20 | J175: 360 | K175: Yes | L175: I | M175: A | N175: NA | O175: Service | P175: Non-Technical | Q175: 8 | R175: 100
A176: 173 | B176: Plumbing | C176: Plumbing After Sales Service | D176: PSC/Q0303 | E176: 3 | F176: 70 | G176: 130 | H176: 40 | I176: 20 | J176: 240 | K176: Yes | L176: I | M176: A | N176: NA | O176: Manufacturing | P176: Technical | Q176: 8 | R176: 50
A177: 174 | B177: Power | C177: Consumer Energy Meter Technician | D177: PSS/Q0107 | E177: 3 | F177: 100 | G177: 250 | H177: 40 | I177: 20 | J177: 390 | K177: Yes | L177: I | M177: A | N177: NA | O177: Manufacturing | P177: Technical | Q177: 8 | R177: 200
A178: 175 | B178: Power | C178: Assistant Electricity Meter Reader, Billing & Cash Collector | D178: PSS/Q3001 | E178: 3 | F178: 65 | G178: 135 | H178: 40 | I178: 20 | J178: 240 | K178: Yes | L178: I | M178: A | N178: NA | O178: Manufacturing | P178: Technical | Q178: 8 | R178: 108
A179: 176 | B179: Power | C179: Assistant Technician - Street Lighting Solutions (Installation & Maintenance) | D179: PSS/Q6003 | E179: 3 | F179: 65 | G179: 135 | H179: 40 | I179: 20 | J179: 240 | K179: Yes | L179: I | M179: A | N179: NA | O179: Manufacturing | P179: Technical | Q179: 8 | R179: 108
A180: 177 | B180: Power | C180: Distribution Lineman | D180: PSS/Q0102 | E180: 4 | F180: 117 | G180: 233 | H180: 40 | I180: 20 | J180: 390 | K180: Yes | L180: I | M180: A | N180: NA | O180: Service | P180: Technical | Q180: 8 | R180: 186
A181: 178 | B181: Power | C181: Technician – Distribution Transformer Repair | D181: PSS/Q3003 | E181: 4 | F181: 120 | G181: 230 | H181: 40 | I181: 20 | J181: 390 | K181: Yes | L181: I | M181: C | N181: NA | O181: Manufacturing | P181: Technical | Q181: 8 | R181: 184
A182: 179 | B182: Power | C182: Attendant Sub-Station (66/11,33/11 KV)-Power Distribution | D182: PSS/Q3002 | E182: 4 | F182: 120 | G182: 230 | H182: 40 | I182: 20 | J182: 390 | K182: Yes | L182: I | M182: C | N182: NA | O182: Manufacturing | P182: Technical | Q182: 8 | R182: 184
A183: 180 | B183: Retail | C183: Retail Trainee Associate | D183: RAS/Q0103 | E183: 3 | F183: 140 | G183: 140 | H183: 40 | I183: 20 | J183: 320 | K183: Yes | L183: II | M183: A | N183: NA | O183: Service | P183: Non-Technical | Q183: 4 | R183: 140
A184: 181 | B184: Retail | C184: Retail Sales Associate | D184: RAS/Q0104 | E184: 4 | F184: 140 | G184: 140 | H184: 40 | I184: 20 | J184: 320 | K184: Yes | L184: II | M184: A | N184: NA | O184: Service | P184: Non-Technical | Q184: 4 | R184: 140
A185: 182 | B185: Retail | C185: Distributor Salesman | D185: RAS/Q0604 | E185: 4 | F185: 140 | G185: 140 | H185: 40 | I185: 20 | J185: 320 | K185: Yes | L185: II | M185: A | N185: NA | O185: Service | P185: Non-Technical | Q185: 4 | R185: 140
A186: 183 | B186: Rubber | C186: Junior Rubber Technician / Technical Assistant | D186: RSC/Q0831 | E186: 3 | F186: 140 | G186: 210 | H186: 40 | I186: 20 | J186: 390 | K186: Yes | L186: I | M186: A | N186: NA | O186: Manufacturing | P186: Technical | Q186: 4 | R186: 185
A187: 184 | B187: Rubber | C187: Mill Operator | D187: RSC/Q0101 | E187: 4 | F187: 140 | G187: 210 | H187: 40 | I187: 20 | J187: 390 | K187: Yes | L187: I | M187: C | N187: NA | O187: Manufacturing | P187: Technical | Q187: 4 | R187: 155
A188: 185 | B188: Rubber | C188: Pneumatic Tyre Moulding Operator | D188: RSC/Q0211 | E188: 4 | F188: 140 | G188: 210 | H188: 40 | I188: 20 | J188: 390 | K188: Yes | L188: I | M188: C | N188: NA | O188: Manufacturing | P188: Technical | Q188: 4 | R188: 155
A189: 186 | B189: Rubber | C189: Compression Moulding Operator | D189: RSC/Q0205 | E189: 4 | F189: 140 | G189: 210 | H189: 40 | I189: 20 | J189: 390 | K189: Yes | L189: I | M189: C | N189: NA | O189: Manufacturing | P189: Technical | Q189: 4 | R189: 155
A190: 187 | B190: Rubber | C190: Injection Moulding Operator | D190: RSC/Q0207 | E190: 4 | F190: 140 | G190: 210 | H190: 40 | I190: 20 | J190: 390 | K190: Yes | L190: I | M190: C | N190: NA | O190: Manufacturing | P190: Technical | Q190: 4 | R190: 155
A191: 188 | B191: Rubber | C191: Material Handling and Storage Operator | D191: RSC/Q0108 | E191: 4 | F191: 140 | G191: 210 | H191: 40 | I191: 20 | J191: 390 | K191: Yes | L191: I | M191: A | N191: NA | O191: Manufacturing | P191: Technical | Q191: 4 | R191: 130
A192: 189 | B192: Rubber | C192: Rubber Nursery Worker - General | D192: RSC/Q6005 | E192: 4 | F192: 80 | G192: 120 | H192: 40 | I192: 20 | J192: 240 | K192: Yes | L192: II | M192: A | N192: NA | O192: Service | P192: Technical | Q192: 4 | R192: 105
A193: 190 | B193: Rubber | C193: General Worker - Rubber Plantation | D193: RSC/Q6107 | E193: 4 | F193: 80 | G193: 120 | H193: 40 | I193: 20 | J193: 240 | K193: Yes | L193: II | M193: A | N193: NA | O193: Service | P193: Technical | Q193: 4 | R193: 115
A194: 191 | B194: Rubber | C194: Latex Harvest Technician (Tapper) | D194: RSC/Q6103 | E194: 4 | F194: 80 | G194: 120 | H194: 40 | I194: 20 | J194: 240 | K194: Yes | L194: II | M194: A | N194: NA | O194: Service | P194: Technical | Q194: 4 | R194: 100
A195: 192 | B195: Security | C195: Unarmed Security Guard | D195: SSS/Q0101 | E195: 4 | F195: 80 | G195: 80 | H195: 40 | I195: 20 | J195: 200 | K195: Yes | L195: II | M195: A | N195: NA | O195: Service | P195: Non-Technical | Q195: 4 | R195: 8
A196: 193 | B196: Sports | C196: Fitness Trainer | D196: SPF/Q1102 | E196: 4 | F196: 60 | G196: 190 | H196: 40 | I196: 20 | J196: 290 | K196: Yes | L196: I | M196: A | N196: NA | O196: Service | P196: NonTechnical | Q196: 4 | R196: 50
A197: 194 | B197: Sports | C197: Sports Masseur | D197: SPF/Q1103 | E197: 4 | F197: 50 | G197: 150 | H197: 40 | I197: 20 | J197: 240 | K197: Yes | L197: II | M197: A | N197: NA | O197: Service | P197: NonTechnical | Q197: 4 | R197: 50
A198: 195 | B198: Sports | C198: Life Guard-Pool & Beach | D198: SPF/Q1104 | E198: 4 | F198: 60 | G198: 190 | H198: 40 | I198: 20 | J198: =SUM(F198:H198) -> 290 | K198: Yes | L198: II | M198: A | N198: NA | O198: Service | P198: NonTechnical | Q198: 4 | R198: 60
A199: 196 | B199: Telecom | C199: Distributer Sales Rep | D199: TEL/Q2100 | E199: 4 | F199: 80 | G199: 120 | H199: 40 | I199: 20 | J199: 240 | K199: Yes | L199: II | M199: A | N199: NA | O199: Service | P199: Non-Technical | Q199: 4 | R199: 40
A200: 197 | B200: Telecom | C200: Sales Executive Broadband | D200: TEL/Q0201 | E200: 4 | F200: 80 | G200: 120 | H200: 40 | I200: 20 | J200: 240 | K200: Yes | L200: II | M200: A | N200: NA | O200: Service | P200: Non-Technical | Q200: 4 | R200: 40
A201: 198 | B201: Telecom | C201: Customer Care Executive – (Telecom Call Centre) | D201: TEL/Q0100 | E201: 4 | F201: 80 | G201: 120 | H201: 40 | I201: 20 | J201: 240 | K201: Yes | L201: II | M201: A | N201: NA | O201: Service | P201: Non-Technical | Q201: 4 | R201: 60
... 24 more rows
